bitfinex-derivatives/quotes_BTCF0:USTF0_20260214
["timestamp","ask_amount","ask_price","bid_price","bid_amount"]
[1771062666820,0.01436,69737.0,69731.0,0.014348]
[1771062667415,0.01436,69738.0,69731.0,0.014348]
[1771062667617,0.02202666,69738.0,69731.0,0.014348]
[1771062667920,0.00767966,69738.0,69733.0,0.014348]
[1771062668114,0.01436,69738.0,69733.0,0.014348]
[1771062668819,0.13748021,69752.0,69734.0,0.16835735]
[1771062669021,0.014346,69743.0,69737.0,0.014347]
[1771062669721,0.028706,69744.0,69736.0,0.014347]
[1771062669913,0.01436,69744.0,69736.0,0.014347]
[1771062670119,0.028706,69744.0,69738.0,0.014347]
[1771062671418,0.028706,69744.0,69738.0,0.028694]
[1771062671619,0.028706,69744.0,69738.0,0.014347]
[1771062671820,0.028706,69744.0,69738.0,0.028694]
[1771062672023,0.014346,69743.0,69738.0,0.014347]
[1771062672625,0.01436,69744.0,69738.0,0.014347]
[1771062672826,1.4e-05,69744.0,69739.0,0.014346]
[1771062673025,0.01436,69744.0,69739.0,0.014346]
[1771062673227,0.014346,69743.0,69739.0,0.014346]
[1771062673727,0.014346,69743.0,69738.0,0.014347]
[1771062674223,0.014346,69743.0,69739.0,0.014347]
[1771062674429,1.4e-05,69744.0,69739.0,0.014347]
[1771062674629,0.014346,69743.0,69739.0,0.014347]
[1771062674928,0.014346,69743.0,69738.0,0.014347]
[1771062675828,0.028692,69744.0,69739.0,0.014347]
[1771062676328,0.01436,69745.0,69740.0,0.014346]
[1771062676529,0.014346,69744.0,69740.0,0.014346]
[1771062676721,0.01436,69746.0,69739.0,0.028707]
[1771062676929,0.028705,69748.0,69743.0,0.014346]
[1771062677119,0.02743182,69748.0,69743.0,0.014346]
[1771062678129,0.014345,69747.0,69742.0,0.014346]
[1771062678726,0.01308682,69748.0,69741.0,0.15399535]
[1771062678926,0.028705,69748.0,69742.0,0.014346]
[1771062679130,0.01436,69748.0,69743.0,0.014346]
[1771062679332,0.01436,69750.0,69743.0,0.15399535]
[1771062679722,0.01436,69750.0,69744.0,0.014345]
[1771062679927,0.01436,69750.0,69746.0,0.014345]
[1771062680233,0.01436,69750.0,69744.0,0.014346]
[1771062680434,0.028688,69750.0,69745.0,0.01436]
[1771062680731,0.014344,69750.0,69745.0,0.01436]
[1771062682232,0.028688,69750.0,69745.0,0.01436]
[1771062683036,0.014344,69750.0,69745.0,0.01436]
[1771062685731,0.014345,69748.0,69745.0,0.01436]
[1771062685935,0.014345,69748.0,69746.0,0.01436]
[1771062686240,0.014345,69749.0,69746.0,0.01436]
[1771062687942,0.014345,69748.0,69745.0,0.01436]
[1771062688448,0.014345,69749.0,69745.0,0.01436]
[1771062692055,0.028704,69753.0,69745.0,0.01436]
[1771062692853,0.014344,69750.0,69745.0,0.01436]
[1771062693854,0.014345,69749.0,69745.0,0.01436]
[1771062695251,0.014344,69751.0,69745.0,0.01436]
[1771062695654,0.014344,69750.0,69745.0,0.01436]
[1771062695954,0.014344,69752.0,69745.0,0.028705]
[1771062696154,0.014344,69751.0,69745.0,0.01436]
[1771062696856,0.014344,69750.0,69745.0,0.01436]
[1771062698855,0.028704,69753.0,69747.0,0.014345]
[1771062699751,0.01436,69753.0,69748.0,0.014345]
[1771062700357,0.014343,69755.0,69748.0,0.014345]
[1771062700656,0.014344,69754.0,69748.0,0.014345]
[1771062700856,0.014344,69754.0,69747.0,0.014345]
[1771062701052,0.014344,69754.0,69748.0,0.01436]
[1771062701248,0.014344,69752.0,69748.0,0.01436]
[1771062705553,0.014344,69753.0,69748.0,0.01436]
[1771062706849,0.014344,69754.0,69748.0,0.028705]
[1771062707453,0.014343,69755.0,69749.0,0.014345]
[1771062707654,0.014343,69755.0,69748.0,0.028705]
[1771062708260,0.014343,69754.0,69748.0,0.028705]
[1771062708570,0.014343,69756.0,69750.0,0.014344]
[1771062708860,0.014343,69756.0,69749.0,0.014344]
[1771062709658,0.014343,69755.0,69749.0,0.014344]
[1771062710457,0.014343,69756.0,69749.0,0.014344]
[1771062710858,0.028703,69757.0,69749.0,0.014344]
[1771062711156,0.014343,69756.0,69749.0,0.014345]
[1771062711360,0.014343,69756.0,69749.0,0.014344]
[1771062711557,0.028703,69757.0,69750.0,0.014344]
[1771062711756,0.157822,69763.0,69756.0,0.014343]
[1771062711966,0.157822,69763.0,69754.0,0.014343]
[1771062711967,0.028684,69761.0,69754.0,0.014343]
[1771062712263,0.014342,69760.0,69754.0,0.014343]
[1771062712468,0.028702,69760.0,69753.0,0.014344]
[1771062712967,0.028702,69760.0,69754.0,0.014343]
[1771062714271,0.028702,69760.0,69753.0,0.028688]
[1771062714465,0.028702,69760.0,69753.0,0.014344]
[1771062714969,0.014343,69759.0,69752.0,0.014344]
[1771062715764,0.014343,69759.0,69753.0,0.014344]
[1771062718568,0.014343,69759.0,69752.0,0.014344]
[1771062719063,0.014343,69759.0,69753.0,0.014344]
[1771062719972,0.028702,69760.0,69753.0,0.014344]
[1771062720365,0.028702,69760.0,69754.0,0.01436]
[1771062720872,0.014342,69759.0,69754.0,0.01436]
[1771062721975,0.028702,69760.0,69754.0,0.01436]
[1771062722971,0.028685,69759.0,69754.0,0.01436]
[1771062723169,0.014343,69757.0,69754.0,0.01436]
[1771062723364,0.014343,69757.0,69753.0,0.01436]
[1771062723774,0.014343,69756.0,69753.0,0.01436]
[1771062728076,0.014343,69757.0,69753.0,0.01436]
[1771062728771,0.01436,69760.0,69753.0,0.028704]
[1771062728971,0.028702,69760.0,69753.0,0.028704]
[1771062729166,0.014343,69759.0,69753.0,0.028704]
[1771062730476,0.014343,69759.0,69753.0,0.01436]
[1771062733880,0.014343,69758.0,69753.0,0.01436]
[1771062739481,0.014343,69759.0,69753.0,0.01436]
[1771062739687,0.014343,69755.0,69753.0,0.01436]
[1771062739889,0.014343,69756.0,69752.0,0.01436]
[1771062744291,0.014344,69754.0,69752.0,0.01436]
[1771062744489,0.014344,69753.0,69747.0,0.157785]
[1771062744687,0.014344,69754.0,69748.0,0.01436]
[1771062745492,0.028686,69756.0,69748.0,0.028705]
[1771062745687,0.014343,69756.0,69749.0,0.014345]
[1771062746495,0.01436,69760.0,69753.0,0.014344]
[1771062746792,0.01436,69760.0,69752.0,0.014344]
[1771062747694,0.014343,69758.0,69752.0,0.014344]
[1771062748389,0.014343,69758.0,69751.0,0.028704]
[1771062751793,0.014343,69758.0,69751.0,0.043048]
[1771062751999,0.014343,69759.0,69752.0,0.014344]
[1771062752305,0.014343,69758.0,69752.0,0.014344]
[1771062753204,0.014343,69756.0,69751.0,0.01436]
[1771062753403,0.014343,69755.0,69750.0,0.01436]
[1771062754003,0.014343,69755.0,69743.0,0.014346]
[1771062754004,0.014345,69748.0,69744.0,0.01436]
[1771062754206,0.014345,69748.0,69741.0,0.157786]
[1771062754412,0.014345,69748.0,69742.0,0.01436]
[1771062755106,0.014345,69749.0,69742.0,0.028706]
[1771062756407,0.014345,69749.0,69743.0,0.014346]
[1771062757104,0.014345,69749.0,69742.0,0.028706]
[1771062759417,0.014345,69749.0,69742.0,0.043052]
[1771062759910,0.014344,69750.0,69744.0,0.014346]
[1771062760112,0.01436,69751.0,69744.0,0.014346]
[1771062761201,0.014344,69750.0,69744.0,0.014346]
[1771062762715,0.014344,69750.0,69743.0,0.014346]
[1771062763407,0.028688,69750.0,69743.0,0.014346]
[1771062763603,0.014345,69749.0,69743.0,0.014346]
[1771062765016,0.014344,69750.0,69743.0,0.014346]
[1771062765313,0.014345,69749.0,69743.0,0.014346]
[1771062765514,0.014345,69748.0,69742.0,0.01436]
[1771062765714,0.014345,69748.0,69742.0,0.028706]
[1771062766513,0.014345,69749.0,69742.0,0.028706]
[1771062766812,0.014345,69749.0,69743.0,0.014346]
[1771062767213,0.014345,69749.0,69742.0,0.028706]
[1771062767915,0.014345,69749.0,69743.0,0.014346]
[1771062770120,0.014345,69748.0,69742.0,0.028706]
[1771062770320,0.014345,69749.0,69742.0,0.028706]
[1771062770620,0.014345,69749.0,69743.0,0.014346]
[1771062770814,0.014345,69748.0,69742.0,0.028706]
[1771062771513,0.014345,69747.0,69742.0,0.01436]
[1771062771716,0.028692,69742.0,69740.0,0.01436]
[1771062771916,0.028692,69742.0,69739.0,0.01436]
[1771062772117,0.014346,69742.0,69739.0,0.01436]
[1771062772317,0.014346,69742.0,69735.0,0.014347]
[1771062772318,0.014346,69741.0,69738.0,0.01436]
[1771062775226,0.014346,69741.0,69735.0,0.028694]
[1771062775427,0.014346,69741.0,69736.0,0.028707]
[1771062776524,0.014346,69741.0,69736.0,0.01436]
[1771062776721,0.014347,69738.0,69731.0,0.014348]
[1771062776926,0.014347,69739.0,69733.0,0.014348]
[1771062777128,0.028694,69739.0,69732.0,0.028708]
[1771062777526,0.014346,69741.0,69730.0,0.014348]
[1771062777527,0.014347,69736.0,69730.0,0.014348]
[1771062777729,0.014347,69739.0,69732.0,0.014348]
[1771062778623,0.014347,69739.0,69733.0,0.014348]
[1771062778931,0.028707,69740.0,69733.0,0.014348]
[1771062779727,0.014347,69739.0,69732.0,0.014348]
[1771062780431,0.014347,69739.0,69729.0,0.014349]
[1771062780432,0.014347,69736.0,69729.0,0.014349]
[1771062780624,0.014347,69736.0,69730.0,0.01436]
[1771062780927,0.014347,69736.0,69730.0,0.028708]
[1771062781129,0.014347,69736.0,69730.0,0.01436]
[1771062781528,0.014347,69738.0,69731.0,0.014348]
[1771062782226,0.014347,69738.0,69732.0,0.014348]
[1771062782728,0.028706,69740.0,69730.0,0.028708]
[1771062782729,0.014347,69737.0,69731.0,0.014348]
[1771062782928,0.014347,69739.0,69731.0,0.028696]
[1771062783130,0.014347,69738.0,69732.0,0.014348]
[1771062783424,0.014347,69737.0,69730.0,0.01436]
[1771062784029,0.014347,69737.0,69730.0,0.028708]
[1771062784231,0.014347,69737.0,69730.0,0.01436]
[1771062784631,0.014347,69738.0,69730.0,0.028708]
[1771062784831,0.014347,69738.0,69731.0,0.014348]
[1771062785931,0.014347,69737.0,69730.0,0.01436]
[1771062786132,0.014347,69736.0,69730.0,0.028708]
[1771062786324,0.014347,69736.0,69730.0,0.01436]
[1771062786525,0.014347,69735.0,69730.0,0.01436]
[1771062786725,0.014347,69736.0,69730.0,0.01436]
[1771062786931,0.014347,69738.0,69730.0,0.01436]
[1771062786932,0.014347,69737.0,69730.0,0.01436]
[1771062787234,0.014347,69737.0,69731.0,0.014348]
[1771062787434,0.014347,69737.0,69730.0,0.028708]
[1771062788837,0.028694,69737.0,69730.0,0.028708]
[1771062789039,0.014347,69737.0,69730.0,0.01436]
[1771062789338,0.014347,69737.0,69730.0,0.028708]
[1771062790028,0.014347,69736.0,69730.0,0.028708]
[1771062790537,0.014347,69737.0,69730.0,0.028708]
[1771062791336,0.014347,69736.0,69730.0,0.028708]
[1771062792934,0.014347,69736.0,69728.0,0.014349]
[1771062793141,0.014347,69735.0,69729.0,0.028709]
[1771062793346,0.014347,69736.0,69729.0,0.028709]
[1771062793840,0.014347,69736.0,69729.0,0.043057]
[1771062794141,0.014348,69735.0,69729.0,0.01436]
[1771062794337,0.014347,69735.0,69729.0,0.028709]
[1771062794641,0.014347,69736.0,69729.0,0.028709]
[1771062797840,0.014348,69735.0,69729.0,0.01436]
[1771062798344,0.028707,69737.0,69729.0,0.01436]
[1771062798642,0.014348,69734.0,69729.0,0.01436]
[1771062798843,0.014348,69732.0,69729.0,0.01436]
[1771062799348,0.014348,69733.0,69729.0,0.01436]
[1771062799643,0.014348,69734.0,69729.0,0.01436]
[1771062802342,0.014347,69735.0,69729.0,0.01436]
[1771062803449,0.014347,69736.0,69729.0,0.028709]
[1771062803645,0.014347,69736.0,69729.0,0.01436]
[1771062803847,0.014347,69735.0,69729.0,0.01436]
[1771062805547,0.014347,69735.0,69728.0,0.014349]
[1771062806843,0.01436,69737.0,69727.0,0.01436]
[1771062807051,0.014349,69730.0,69724.0,0.14348]
[1771062807750,0.014349,69730.0,69724.0,0.15783]
[1771062809551,0.014349,69730.0,69724.0,0.17218]
[1771062809846,0.028708,69731.0,69725.0,0.014349]
[1771062810652,0.014349,69730.0,69725.0,0.014349]
[1771062812154,0.014349,69729.0,69724.0,0.15783]
[1771062812355,0.014348,69730.0,69724.0,0.15783]
[1771062813058,0.01435,69724.0,69716.0,0.014351]
[1771062813358,0.014349,69725.0,69718.0,0.014351]
[1771062813552,0.014349,69725.0,69719.0,0.01435]
[1771062813858,0.01435,69725.0,69719.0,0.014351]
[1771062814058,0.00014481,69724.0,69719.0,0.014351]
[1771062814360,0.00014481,69724.0,69720.0,0.01435]
[1771062815157,0.00014481,69724.0,69719.0,0.014351]
[1771062815561,0.00014481,69724.0,69719.0,0.028711]
[1771062816261,0.00014481,69724.0,69720.0,0.01435]
[1771062816558,0.028709,69727.0,69720.0,0.01435]
[1771062816760,0.01436,69727.0,69721.0,0.01435]
[1771062818561,0.01436,69727.0,69721.0,0.0287]
[1771062818763,0.028709,69728.0,69721.0,0.0287]
[1771062819259,0.028709,69728.0,69722.0,0.01435]
[1771062819858,0.014348,69730.0,69722.0,0.01435]
[1771062820057,0.028709,69729.0,69722.0,0.01435]
[1771062820258,0.014349,69728.0,69722.0,0.01435]
[1771062820757,0.01436,69730.0,69724.0,0.01435]
[1771062820957,0.00010076,69730.0,69724.0,0.01435]
[1771062821153,0.01444976,69730.0,69724.0,0.01435]
[1771062822157,0.01444976,69730.0,69724.0,0.0287]
[1771062822362,0.01444976,69730.0,69724.0,0.01435]
[1771062823256,0.02879876,69730.0,69724.0,0.01435]
[1771062823462,0.01444976,69730.0,69723.0,0.01435]
[1771062823662,0.014349,69729.0,69723.0,0.01435]
[1771062823957,0.00010076,69730.0,69723.0,0.01435]
[1771062824158,0.01436,69737.0,69728.0,0.13080028]
[1771062824356,0.014347,69736.0,69729.0,0.13081128]
[1771062824961,0.01436,69737.0,69729.0,0.13081128]
[1771062824962,0.028696,69734.0,69729.0,0.13081128]
[1771062825155,0.014348,69733.0,69729.0,0.13081128]
[1771062825865,0.014348,69734.0,69729.0,0.13081128]
[1771062826166,0.014347,69735.0,69729.0,0.13081128]
[1771062826463,0.014348,69732.0,69729.0,0.13081128]
[1771062826655,0.014347,69736.0,69729.0,0.13081128]
[1771062826857,0.014348,69734.0,69729.0,0.13081128]
[1771062827059,0.01436,69737.0,69729.0,0.14516028]
[1771062827463,0.014348,69734.0,69729.0,0.14516028]
[1771062827863,0.014348,69733.0,69729.0,0.14516028]
[1771062828664,0.014348,69731.0,69729.0,0.13081128]
[1771062828959,0.014348,69731.0,69729.0,0.01436]
[1771062834368,0.014348,69730.0,69729.0,0.01436]
[1771062835565,0.014348,69731.0,69729.0,0.01436]
[1771062842579,0.01436,69737.0,69729.0,0.01436]
[1771062842779,0.014348,69734.0,69729.0,0.01436]
[1771062843079,0.012696,69735.0,69729.0,0.01436]
[1771062843578,0.014348,69734.0,69729.0,0.01436]
[1771062844281,0.014348,69733.0,69729.0,0.01436]
[1771062844481,0.014348,69732.0,69729.0,0.01436]
[1771062844980,0.014348,69734.0,69729.0,0.01436]
[1771062845482,0.014348,69735.0,69729.0,0.01436]
[1771062845980,0.014348,69734.0,69729.0,0.01436]
[1771062846180,0.014348,69733.0,69729.0,0.01436]
[1771062846581,0.014348,69732.0,69729.0,0.01436]
[1771062847682,0.014348,69733.0,69729.0,0.01436]
[1771062848081,0.014347,69735.0,69729.0,0.01436]
[1771062848284,0.014348,69733.0,69729.0,0.01436]
[1771062849080,0.028696,69733.0,69729.0,0.01436]
[1771062849586,0.014348,69731.0,69729.0,0.01436]
[1771062849881,0.014348,69732.0,69729.0,0.01436]
[1771062850074,0.014348,69731.0,69729.0,0.01436]
[1771062850279,0.014348,69732.0,69729.0,0.01436]
[1771062850479,0.014348,69733.0,69729.0,0.01436]
[1771062851079,0.028696,69733.0,69729.0,0.01436]
[1771062851584,0.014348,69732.0,69729.0,0.01436]
[1771062852890,0.014348,69734.0,69729.0,0.01436]
[1771062853089,0.014348,69733.0,69729.0,0.01436]
[1771062853487,0.014348,69732.0,69729.0,0.01436]
[1771062854891,0.014348,69731.0,69729.0,0.01436]
[1771062855982,0.014348,69734.0,69729.0,0.01436]
[1771062856183,0.014348,69732.0,69729.0,0.01436]
[1771062856784,0.014348,69733.0,69729.0,0.01436]
[1771062857593,0.014348,69732.0,69729.0,0.01436]
[1771062859192,0.014348,69733.0,69729.0,0.01436]
[1771062859396,0.014348,69732.0,69729.0,0.01436]
[1771062859693,0.014348,69733.0,69729.0,0.01436]
[1771062860594,0.028696,69733.0,69729.0,0.01436]
[1771062860893,0.014348,69732.0,69729.0,0.01436]
[1771062862594,0.014348,69734.0,69729.0,0.01436]
[1771062863193,0.014348,69733.0,69729.0,0.01436]
[1771062864595,0.014348,69734.0,69729.0,0.01436]
[1771062865392,0.14348,69742.0,69736.0,0.014347]
[1771062865598,0.014346,69741.0,69734.0,0.028708]
[1771062865990,0.014346,69740.0,69734.0,0.028708]
[1771062866297,0.014347,69739.0,69734.0,0.01436]
[1771062868595,0.014346,69741.0,69735.0,0.014347]
[1771062868794,0.014346,69743.0,69736.0,0.014347]
[1771062868994,0.01436,69744.0,69737.0,0.01436]
[1771062869189,0.014345,69745.0,69739.0,0.014346]
[1771062869797,0.02869,69745.0,69738.0,0.028707]
[1771062870196,0.014346,69744.0,69738.0,0.028707]
[1771062871401,0.014345,69745.0,69738.0,0.043054]
[1771062871601,0.014345,69745.0,69738.0,0.028707]
[1771062872006,0.14348,69750.0,69738.0,0.01436]
[1771062872199,0.01436,69749.0,69743.0,0.014346]
[1771062872398,0.01436,69749.0,69744.0,0.014345]
[1771062872604,0.14348,69750.0,69744.0,0.014345]
[1771062873402,0.14348,69750.0,69745.0,0.014345]
[1771062873804,0.157824,69750.0,69743.0,0.014346]
[1771062874008,0.157823,69758.0,69744.0,0.014346]
[1771062874307,0.014343,69756.0,69749.0,0.014344]
[1771062874600,0.014343,69755.0,69749.0,0.014344]
[1771062874807,0.014343,69756.0,69749.0,0.01436]
[1771062875212,0.014343,69755.0,69749.0,0.028704]
[1771062875407,0.014343,69755.0,69749.0,0.01436]
[1771062875707,0.014344,69753.0,69749.0,0.01436]
[1771062875907,0.014343,69756.0,69749.0,0.01436]
[1771062876109,0.014343,69755.0,69749.0,0.028704]
[1771062876310,0.014344,69753.0,69749.0,0.01436]
[1771062876515,0.028703,69757.0,69749.0,0.01436]
[1771062876516,0.014343,69755.0,69749.0,0.01436]
[1771062876698,0.014343,69756.0,69749.0,0.043048]
[1771062876905,0.028703,69757.0,69751.0,0.014344]
[1771062877909,0.028703,69757.0,69750.0,0.028688]
[1771062878103,0.028703,69757.0,69750.0,0.014344]
[1771062878304,0.043046,69757.0,69750.0,0.014344]
[1771062879007,0.028686,69757.0,69750.0,0.014344]
[1771062879213,0.014343,69756.0,69750.0,0.014344]
[1771062879401,0.01436,69760.0,69749.0,0.01436]
[1771062879712,0.014342,69762.0,69755.0,0.014343]
[1771062879911,0.014342,69762.0,69756.0,0.01436]
[1771062880209,0.014342,69762.0,69756.0,0.028703]
[1771062881605,0.014342,69763.0,69757.0,0.014343]
[1771062882512,0.014342,69762.0,69757.0,0.014343]
[1771062883909,0.014342,69761.0,69756.0,0.01436]
[1771062884109,0.014343,69759.0,69756.0,0.01436]
[1771062884307,0.014343,69758.0,69756.0,0.01436]
[1771062885713,0.014343,69757.0,69752.0,0.14344]
[1771062885910,0.014344,69753.0,69752.0,0.14344]
[1771062886118,0.014344,69752.0,69745.0,0.157785]
[1771062886415,0.014344,69752.0,69745.0,0.014345]
[1771062886605,0.014344,69751.0,69746.0,0.01436]
[1771062886808,0.014344,69751.0,69747.0,0.01436]
[1771062888515,0.014344,69752.0,69747.0,0.01436]
[1771062889718,0.014344,69752.0,69745.0,0.02869]
[1771062889920,0.014344,69752.0,69746.0,0.01436]
[1771062890620,0.014344,69752.0,69746.0,0.028705]
[1771062890814,0.014344,69753.0,69747.0,0.014345]
[1771062891020,0.014344,69753.0,69748.0,0.01436]
[1771062896727,0.028703,69757.0,69748.0,0.01436]
[1771062896919,0.014343,69756.0,69749.0,0.014344]
[1771062897522,0.014343,69756.0,69749.0,0.028688]
[1771062899427,0.014343,69756.0,69750.0,0.014344]
[1771062899723,0.014343,69756.0,69751.0,0.01436]
[1771062900622,0.014343,69757.0,69751.0,0.01436]
[1771062900830,0.014344,69754.0,69751.0,0.01436]
[1771062901013,0.014344,69752.0,69751.0,0.01436]
[1771062901214,0.014344,69752.0,69750.0,0.01436]
[1771062901420,0.014344,69752.0,69746.0,0.014345]
[1771062902121,0.014344,69753.0,69747.0,0.01436]
[1771062902321,0.014344,69754.0,69747.0,0.028705]
[1771062903725,0.028688,69754.0,69747.0,0.028705]
[1771062904028,0.014344,69754.0,69747.0,0.028705]
[1771062905727,0.13543303,69756.0,69747.0,0.01436]
[1771062905728,0.014345,69749.0,69747.0,0.01436]
[1771062905924,0.014344,69750.0,69744.0,0.14344]
[1771062906226,0.014344,69750.0,69745.0,0.01436]
[1771062907620,0.014344,69752.0,69745.0,0.01436]
[1771062907823,0.014344,69750.0,69745.0,0.01436]
[1771062908129,0.028688,69750.0,69745.0,0.01436]
[1771062908525,0.014345,69749.0,69745.0,0.01436]
[1771062909024,0.014345,69749.0,69742.0,0.014346]
[1771062909225,0.014345,69749.0,69743.0,0.01436]
[1771062909425,0.014344,69750.0,69743.0,0.028706]
[1771062909625,0.014344,69750.0,69743.0,0.043052]
[1771062909922,0.014344,69750.0,69744.0,0.014346]
[1771062910720,0.014344,69752.0,69744.0,0.014346]
[1771062910924,0.014343,69754.0,69747.0,0.014345]
[1771062911229,0.014343,69754.0,69747.0,0.028705]
[1771062912526,0.028687,69754.0,69747.0,0.028705]
[1771062913436,0.014343,69754.0,69747.0,0.028705]
[1771062914332,0.028687,69754.0,69747.0,0.028705]
[1771062915232,0.014344,69753.0,69747.0,0.028705]
[1771062915733,0.014344,69754.0,69747.0,0.028705]
[1771062916034,0.028688,69754.0,69748.0,0.014345]
[1771062916233,0.014344,69754.0,69748.0,0.014345]
[1771062916827,0.028688,69754.0,69747.0,0.028705]
[1771062917527,0.014344,69754.0,69747.0,0.028705]
[1771062918733,0.014344,69753.0,69747.0,0.028705]
[1771062920438,0.014344,69753.0,69747.0,0.01436]
[1771062920939,0.014344,69750.0,69747.0,0.01436]
[1771062924844,0.014344,69750.0,69744.0,0.014345]
[1771062925044,0.014344,69752.0,69737.0,0.01436]
[1771062925045,0.014346,69740.0,69737.0,0.01436]
[1771062925347,0.014346,69740.0,69733.0,0.014348]
[1771062925547,0.014346,69740.0,69734.0,0.014348]
[1771062925751,0.014346,69741.0,69734.0,0.014348]
[1771062925946,0.014346,69741.0,69734.0,0.028694]
[1771062926145,0.014346,69741.0,69735.0,0.028707]
[1771062926749,0.014346,69742.0,69735.0,0.028707]
[1771062927247,0.014346,69741.0,69735.0,0.028707]
[1771062928148,0.014347,69740.0,69735.0,0.01436]
[1771062929248,0.014347,69740.0,69734.0,0.014348]
[1771062929445,0.12109003,69740.0,69724.0,0.01435]
[1771062929649,0.014347,69736.0,69728.0,0.014349]
[1771062929849,0.014347,69737.0,69729.0,0.01436]
[1771062929850,0.014347,69735.0,69729.0,0.01436]
[1771062930050,0.014347,69735.0,69729.0,0.028709]
[1771062930452,0.014347,69735.0,69730.0,0.014348]
[1771062930651,0.12107703,69739.0,69725.0,0.014349]
[1771062930652,0.13542603,69731.0,69725.0,0.014349]
[1771062930953,0.01436,69730.0,69726.0,0.014349]
[1771062931344,0.01436,69730.0,69728.0,0.014349]
[1771062931541,0.01436,69730.0,69729.0,0.014349]
[1771062931741,0.01436,69730.0,69728.0,0.014349]
[1771062932052,0.01436,69730.0,69719.0,0.028711]
[1771062932244,0.01436,69729.0,69728.0,0.014349]
[1771062932448,0.14348,69736.0,69732.0,0.014348]
[1771062932658,0.01436,69735.0,69733.0,0.014348]
[1771062932950,0.01436,69734.0,69733.0,0.014348]
[1771062933151,0.14348,69737.0,69733.0,0.014348]
[1771062933454,0.01436,69736.0,69733.0,0.014348]
[1771062935249,0.14348,69737.0,69733.0,0.014348]
[1771062935454,0.00595256,69735.0,69733.0,0.014348]
[1771062936451,0.00595256,69735.0,69732.0,0.014348]
[1771062938455,0.00595256,69735.0,69733.0,0.014348]
[1771062939357,0.00595256,69735.0,69732.0,0.014348]
[1771062940257,0.00595256,69735.0,69720.0,0.10020252]
[1771062940258,0.10021504,69728.0,69720.0,0.01435]
[1771062940556,0.01436,69727.0,69723.0,0.01435]
[1771062940752,0.01436,69727.0,69724.0,0.014349]
[1771062941354,0.11456304,69732.0,69724.0,0.014349]
[1771062941355,0.01436,69726.0,69725.0,0.014349]
[1771062941554,0.10021504,69732.0,69726.0,0.014349]
[1771062941751,0.01436,69731.0,69726.0,0.014349]
[1771062950256,0.01436,69731.0,69725.0,0.014349]
[1771062951966,0.014347,69736.0,69725.0,0.014349]
[1771062951967,0.014346,69744.0,69733.0,0.014348]
[1771062952270,0.014346,69744.0,69731.0,0.014348]
[1771062952271,0.14352,69752.0,69742.0,0.014346]
[1771062952469,0.01436,69751.0,69742.0,0.014346]
[1771062952663,0.028704,69751.0,69742.0,0.014346]
[1771062952964,0.028704,69751.0,69741.0,0.014346]
[1771062953167,0.014344,69750.0,69741.0,0.028695]
[1771062954162,0.01436,69751.0,69743.0,0.014346]
[1771062955957,0.01436,69751.0,69740.0,0.014346]
[1771062955958,0.028704,69751.0,69742.0,0.014346]
[1771062956162,0.014344,69750.0,69742.0,0.014346]
[1771062956972,0.01436,69751.0,69743.0,0.014346]
[1771062957471,0.028704,69751.0,69743.0,0.014346]
[1771062957865,0.01436,69751.0,69744.0,0.014346]
[1771062958171,0.01436,69750.0,69744.0,0.014349]
[1771062962073,0.028704,69750.0,69741.0,0.014346]
[1771062962368,0.028704,69750.0,69743.0,0.014349]
[1771062963175,0.14352,69752.0,69743.0,0.028695]
[1771062963370,0.01436,69753.0,69750.0,0.014344]
[1771062963575,0.01436,69753.0,69749.0,0.014344]
[1771062964173,0.028704,69753.0,69744.0,0.014346]
[1771062964374,0.014344,69752.0,69744.0,0.01436]
[1771062966270,0.014344,69752.0,69737.0,0.10396304]
[1771062966271,0.014344,69750.0,69741.0,0.028706]
[1771062966473,0.01436,69749.0,69744.0,0.014345]
[1771062967274,0.01436,69750.0,69744.0,0.014345]
[1771062967475,0.01436,69750.0,69741.0,0.11832304]
[1771062967676,0.01436,69752.0,69747.0,0.014345]
[1771062967876,0.01436,69753.0,69748.0,0.014345]
[1771062968078,0.01436,69753.0,69749.0,0.014344]
[1771062968680,0.14348,69760.0,69750.0,0.014344]
[1771062968885,0.028702,69759.0,69750.0,0.014344]
[1771062969080,0.014343,69757.0,69749.0,0.014344]
[1771062969379,0.028686,69757.0,69749.0,0.014344]
[1771062969575,0.014343,69757.0,69749.0,0.014344]
[1771062969781,0.01436,69759.0,69750.0,0.10396304]
[1771062969978,0.01436,69759.0,69752.0,0.014344]
[1771062970483,0.01434,69770.0,69750.0,0.11830704]
[1771062970484,0.1062941,69786.0,69768.0,0.10396304]
[1771062970675,0.014338,69782.0,69773.0,0.014339]
[1771062970875,0.1206311,69786.0,69777.0,0.014339]
[1771062971079,0.014338,69781.0,69772.0,0.01434]
[1771062971289,0.028698,69780.0,69772.0,0.01434]
[1771062971585,0.014339,69778.0,69771.0,0.10396304]
[1771062971787,0.014339,69778.0,69770.0,0.01434]
[1771062972379,0.014339,69774.0,69768.0,0.01436]
[1771062972581,0.01434,69773.0,69765.0,0.028682]
[1771062972781,0.014339,69774.0,69766.0,0.028701]
[1771062974991,0.014339,69775.0,69766.0,0.014341]
[1771062975296,0.014339,69775.0,69767.0,0.01436]
[1771062976095,0.014339,69775.0,69767.0,0.028701]
[1771062976588,0.014339,69775.0,69767.0,0.01436]
[1771062977881,0.01436,69776.0,69767.0,0.028701]
[1771062978276,0.01436,69776.0,69768.0,0.01434]
[1771062978477,0.01436,69776.0,69767.0,0.028701]